bitfinex/quotes_SOLUSD_20251024
["timestamp","ask_amount","ask_price","bid_price","bid_amount"]
[1761316269819,8.70521067,190.16,190.09,8.01521067]
[1761316269998,0.69,190.2,190.1,0.4]
[1761316270202,8.01521067,190.18,190.12,8.01521067]
[1761316270425,0.69,190.2,190.12,8.01521067]
[1761316270631,47.09521067,190.19,190.12,8.01521067]
[1761316270830,39.77,190.2,190.1,0.4]
[1761316271008,0.69,190.19,190.13,5.27510494]
[1761316271212,23.74,190.21,190.15,5.27510494]
[1761316271409,5.94513689,190.29,190.16,5.27510494]
[1761316271616,5.27510494,190.21,190.1,0.4]
[1761316271830,0.69,190.28,190.16,18.40555321]
[1761316272012,39.77,190.27,190.18,5.27510494]
[1761316272221,39.06,190.26,190.18,5.27510494]
[1761316272432,39.06,190.26,190.19,5.67510494]
[1761316272732,39.06,190.26,190.16,18.40555321]
[1761316272733,39.06,190.26,190.2,5.27510494]
[1761316272934,0.69,190.29,190.21,5.27510494]
[1761316272935,5.27510494,190.27,190.21,5.27510494]
[1761316273224,5.96510494,190.27,190.21,5.27510494]
[1761316273434,22.88,190.32,190.25,5.27510494]
[1761316273609,22.88,190.32,190.22,0.4]
[1761316273610,39.06,190.33,190.22,0.4]
[1761316273798,5.27510494,190.31,190.26,18.39587932]
[1761316274024,0.69,190.31,190.26,18.39587932]
[1761316274225,0.69,190.35,190.26,18.79587932]
[1761316274525,44.33510494,190.34,190.27,5.27510494]
[1761316274823,5.96510494,190.35,190.28,5.27510494]
[1761316275218,5.27510494,190.37,190.28,0.4]
[1761316275413,5.27510494,190.37,190.26,44.67570692]
[1761316275414,5.96510494,190.38,190.31,5.27510494]
[1761316275727,0.2,190.39,190.33,5.27510494]
[1761316276032,5.47510494,190.39,190.34,18.38814751]
[1761316276328,0.2,190.46,190.38,5.27510494]
[1761316276510,0.2,190.46,190.37,0.4]
[1761316276824,0.2,190.46,190.34,41.26814751]
[1761316276825,5.27510494,190.45,190.34,41.26814751]
[1761316277024,5.27510494,190.43,190.34,23.28]
[1761316277227,5.27510494,190.41,190.33,22.88]
[1761316277418,0.69,190.45,190.34,0.4]
[1761316277728,0.2,190.46,190.4,5.27510494]
[1761316278024,0.2,190.46,190.41,10.52692994]
[1761316278204,0.2,190.46,190.41,23.65649246]
[1761316278523,0.69,190.45,190.41,23.65649246]
[1761316278734,5.27510494,190.44,190.34,22.88]
[1761316278899,5.27510494,190.44,190.38,5.27510494]
[1761316279303,5.97510494,190.44,190.35,0.4]
[1761316279523,5.97510494,190.43,190.34,67.53692968]
[1761316279827,5.97510494,190.43,190.37,10.52779822]
[1761316280036,5.27510494,190.41,190.37,5.25269328]
[1761316280212,0.7,190.42,190.37,5.25269328]
[1761316280529,0.7,190.41,190.35,5.25330343]
[1761316280718,5.27510494,190.4,190.35,5.25330343]
[1761316281111,5.97510494,190.4,190.35,5.25330343]
[1761316281307,5.27510494,190.4,190.35,18.3870045]
[1761316281533,5.27510494,190.4,190.3,22.88]
[1761316281534,5.97510494,190.39,190.3,28.1348042]
[1761316281839,0.7,190.39,190.34,5.25375643]
[1761316282004,5.27510494,190.41,190.34,18.38814751]
[1761316282202,5.27510494,190.4,190.34,23.66325245]
[1761316282605,5.27510494,190.43,190.37,5.27510494]
[1761316283152,0.2,190.46,190.4,5.27510494]
[1761316283348,0.2,190.46,190.41,5.27510494]
[1761316283649,0.9,190.46,190.42,5.27510494]
[1761316284168,5.97510494,190.45,190.39,10.52748164]
[1761316284328,0.2,190.46,190.35,5.27510494]
[1761316284329,5.27510494,190.41,190.35,5.27510494]
[1761316284844,5.97510494,190.42,190.36,5.27510494]
[1761316285162,0.2,190.46,190.38,5.27510494]
[1761316285339,5.27510494,190.44,190.39,5.27510494]
[1761316285550,39.0,190.45,190.39,5.27510494]
[1761316285735,5.97510494,190.44,190.38,5.27510494]
[1761316286229,0.7,190.43,190.39,5.2523767]
[1761316286748,0.2,190.46,190.39,18.78331845]
[1761316286936,0.2,190.46,190.41,5.27510494]
[1761316287126,0.2,190.46,190.39,18.38331845]
[1761316287327,0.2,190.46,190.42,5.27510494]
[1761316288236,0.2,190.46,190.39,45.04520195]
[1761316288437,0.2,190.46,190.42,5.27510494]
[1761316289047,0.9,190.46,190.42,5.27510494]
[1761316289251,0.9,190.46,190.43,18.37945701]
[1761316289637,0.2,190.46,190.43,18.37945701]
[1761316289855,0.2,190.46,190.43,23.65456195]
[1761316290150,0.2,190.46,190.43,18.37945701]
[1761316290365,1e-08,190.46,190.45,5.27510494]
[1761316290568,0.2,190.55,190.46,33.75647521]
[1761316290768,0.2,190.55,190.52,5.27510494]
[1761316290931,0.2,190.55,190.53,5.27510494]
[1761316291133,0.2,190.55,190.54,5.24824183]
[1761316292056,0.2,190.55,190.54,10.52334677]
[1761316292237,0.9,190.55,190.5,5.24934383]
[1761316292434,5.27510494,190.52,190.47,5.25017063]
[1761316292634,0.2,190.55,190.47,5.25017063]
[1761316292635,5.97510494,190.51,190.47,5.25017063]
[1761316292872,0.7,190.51,190.47,5.25017063]
[1761316293052,0.7,190.51,190.47,18.3755972]
[1761316293361,0.7,190.51,190.47,23.65070214]
[1761316293654,5.97510494,190.53,190.47,23.65070214]
[1761316293862,5.27510494,190.52,190.47,18.3755972]
[1761316294390,0.2,190.55,190.47,10.52527557]
[1761316294550,0.2,190.55,190.47,18.3755972]
[1761316294866,5.27510494,190.51,190.45,5.2506159]
[1761316295037,5.27510494,190.51,190.45,18.37742083]
[1761316295242,5.27510494,190.51,190.45,23.65252577]
[1761316295644,5.27510494,190.51,190.45,5.2506159]
[1761316295958,5.97510494,190.51,190.45,23.65252577]
[1761316296463,0.2,190.55,190.45,5.2506159]
[1761316296464,5.27510494,190.49,190.45,5.2506159]
[1761316296667,5.27510494,190.48,190.45,5.2506159]
[1761316297135,0.7,190.47,190.45,5.2506159]
[1761316297337,5.97510494,190.48,190.44,13.1274006]
[1761316297554,0.7,190.48,190.44,13.1274006]
[1761316297739,5.97510494,190.47,190.43,5.25127343]
[1761316297947,5.27510494,190.46,190.43,5.25127343]
[1761316298164,5.27510494,190.46,190.38,26.26198345]
[1761316298165,5.27510494,190.44,190.38,13.13102888]
[1761316298367,0.7,190.45,190.4,5.27510494]
[1761316298574,0.7,190.48,190.42,5.27510494]
[1761316298760,5.97510494,190.47,190.38,13.13102888]
[1761316298961,5.27510494,190.45,190.39,5.27510494]
[1761316299173,5.27510494,190.45,190.37,5.2529285]
[1761316299373,5.97510494,190.44,190.38,5.27510494]
[1761316299682,0.7,190.44,190.37,18.38524976]
[1761316299983,5.97510494,190.43,190.37,23.6603547]
[1761316300389,0.7,190.42,190.37,18.38524976]
[1761316300696,5.97510494,190.42,190.37,18.38524976]
[1761316300981,0.7,190.42,190.37,23.6603547]
[1761316301382,0.7,190.42,190.39,5.2523767]
[1761316302180,0.7,190.45,190.4,5.27510494]
[1761316302396,0.7,190.45,190.39,10.52748164]
[1761316302575,5.27510494,190.44,190.39,5.2523767]
[1761316302969,0.7,190.44,190.4,5.27510494]
[1761316303164,5.24989705,190.48,190.43,5.27510494]
[1761316303165,0.7,190.48,190.43,5.27510494]
[1761316303390,39.62,190.48,190.44,5.25099768]
[1761316303685,5.27510494,190.47,190.44,5.25099768]
[1761316303871,0.7,190.47,190.39,5.27510494]
[1761316304075,44.89510494,190.46,190.4,5.27510494]
[1761316304381,5.27510494,190.44,190.37,18.38524976]
[1761316304582,5.27510494,190.44,190.38,5.27510494]
[1761316304778,5.97510494,190.44,190.38,5.27510494]
[1761316305161,5.97510494,190.44,190.37,18.38524976]
[1761316305363,5.27510494,190.42,190.39,5.2523767]
[1761316305694,5.25102805,190.44,190.32,10.87647521]
[1761316305695,0.7,190.41,190.32,5.25430853]
[1761316305893,22.88,190.37,190.3,5.27510494]
[1761316306062,22.88,190.37,190.28,0.4]
[1761316306063,67.07510494,190.37,190.28,0.4]
[1761316306267,5.27510494,190.32,190.22,13.1426769]
[1761316306488,0.7,190.36,190.23,0.4]
[1761316306791,0.7,190.35,190.29,5.27510494]
[1761316307186,5.27510494,190.32,190.23,0.4]
[1761316307364,5.27510494,190.31,190.26,5.27510494]
[1761316308188,5.27510494,190.32,190.26,5.27510494]
[1761316308365,5.27510494,190.32,190.27,5.25568928]
[1761316308569,28.15510494,190.34,190.29,5.27510494]
[1761316308879,38.92,190.35,190.29,5.27510494]
[1761316308880,5.27510494,190.35,190.29,5.27510494]
[1761316309083,38.92,190.36,190.3,5.27510494]
[1761316309084,5.27510494,190.36,190.3,5.27510494]
[1761316309410,5.27510494,190.35,190.3,5.27510494]
[1761316309692,5.27510494,190.34,190.29,5.27510494]
[1761316309875,5.27510494,190.35,190.3,5.27510494]
[1761316310192,5.27510494,190.37,190.31,5.27510494]
[1761316310381,22.88,190.36,190.32,5.25430853]
[1761316310582,5.27510494,190.37,190.32,5.25430853]
[1761316310771,5.27510494,190.35,190.32,5.25430853]
[1761316311094,5.27510494,190.33,190.32,5.25430853]
[1761316311402,5.27510494,190.33,190.29,18.39297913]
[1761316311579,0.71,190.33,190.29,18.39297913]
[1761316311895,0.71,190.32,190.29,18.39297913]
[1761316312101,5.98510494,190.32,190.29,5.25513689]
[1761316312272,5.98510494,190.31,190.29,5.25513689]
[1761316312474,5.98510494,190.31,190.26,18.39527588]
[1761316312665,0.71,190.31,190.26,23.67038082]
[1761316312869,0.71,190.31,190.26,18.39527588]
[1761316313084,0.71,190.31,190.26,23.67038082]
[1761316313288,5.27510494,190.27,190.23,13.14143051]
[1761316313496,5.27510494,190.27,190.18,26.39068823]
[1761316313497,5.27510494,190.25,190.21,5.25734714]
[1761316313711,0.71,190.24,190.21,5.25734714]
[1761316314003,0.71,190.28,190.21,18.40071499]
[1761316314191,5.27510494,190.26,190.21,23.67581993]
[1761316314390,5.27510494,190.25,190.21,18.40071499]
[1761316314607,0.71,190.24,190.21,18.40071499]
[1761316314787,5.27510494,190.26,190.21,18.40071499]
[1761316315292,38.92,190.28,190.24,5.27510494]
[1761316315477,0.71,190.3,190.24,5.27510494]
[1761316315677,0.71,190.3,190.26,5.27510494]
[1761316315892,44.90510494,190.33,190.22,0.4]
[1761316316205,39.63,190.33,190.27,5.27510494]
[1761316316425,0.71,190.36,190.3,5.27510494]
[1761316316584,38.92,190.33,190.29,18.39297913]
[1761316316779,39.63,190.35,190.3,5.27510494]
[1761316317280,0.7,190.34,190.3,5.27510494]
[1761316317998,38.92,190.36,190.32,5.27510494]
[1761316318182,39.62,190.36,190.32,5.27510494]
[1761316318387,0.7,190.35,190.31,5.27510494]
[1761316318694,0.7,190.35,190.3,5.27510494]
[1761316318876,0.7,190.35,190.26,26.27895322]
[1761316318877,5.27510494,190.33,190.27,5.27510494]
[1761316319287,0.7,190.32,190.26,31.55405816]
[1761316319488,5.27510494,190.31,190.25,18.39684624]
[1761316319704,0.7,190.32,190.27,5.27510494]
[1761316319873,5.27510494,190.35,190.29,5.27510494]
[1761316320075,38.9,190.34,190.29,5.27510494]
[1761316320274,22.88,190.36,190.33,5.27510494]
[1761316320587,4.22133212,190.45,190.3,0.4]
[1761316320588,0.7,190.43,190.35,5.27510494]
[1761316320789,39.6,190.43,190.37,5.27510494]
[1761316320995,39.6,190.43,190.34,44.65692968]
[1761316320996,39.6,190.43,190.38,5.27510494]
[1761316321194,39.6,190.43,190.34,44.65692968]
[1761316321195,38.9,190.44,190.41,5.27510494]
[1761316321487,25.10310427,190.51,190.4,5.27510494]
[1761316321488,22.88,190.43,190.4,5.27510494]
[1761316321820,38.9,190.44,190.4,5.27510494]
[1761316321977,38.9,190.44,190.34,44.65692968]
[1761316322182,38.9,190.46,190.41,5.27510494]
[1761316322396,4.22133212,190.52,190.36,13.13301113]
[1761316322599,0.7,190.45,190.42,5.27510494]
[1761316323100,5.27510494,190.49,190.44,5.27510494]
[1761316323101,0.7,190.49,190.44,5.27510494]
[1761316323298,0.7,190.49,190.4,22.88]
[1761316323299,0.7,190.49,190.45,5.27510494]
[1761316323683,0.7,190.49,190.44,5.27510494]
[1761316323895,0.9,190.55,190.48,5.27510494]
[1761316324097,0.9,190.55,190.43,22.88]
[1761316324098,5.97510494,190.54,190.43,22.88]
[1761316324298,5.27510494,190.52,190.45,5.27510494]
[1761316324493,5.27510494,190.51,190.46,5.25044628]
[1761316324805,38.9,190.51,190.4,22.88]
[1761316325006,5.27510494,190.48,190.41,5.27510494]
[1761316325515,38.9,190.51,190.41,5.27510494]
[1761316325516,5.97510494,190.47,190.41,5.27510494]
[1761316325813,5.27510494,190.45,190.39,13.13094175]
[1761316326305,5.27510494,190.45,190.33,0.4]
[1761316326306,5.27510494,190.42,190.35,13.13331179]
[1761316326506,5.27510494,190.43,190.35,13.13331179]
[1761316326709,0.7,190.43,190.38,5.27510494]
[1761316326891,0.7,190.43,190.4,5.27510494]
[1761316327091,0.7,190.43,190.35,13.53331179]
[1761316327291,0.7,190.43,190.39,5.27510494]
[1761316327492,0.7,190.43,190.35,13.53331179]
[1761316327493,0.7,190.43,190.38,5.27510494]
[1761316327698,0.7,190.43,190.35,13.13331179]
[1761316327699,5.97510494,190.43,190.35,13.13331179]
[1761316327896,5.97510494,190.43,190.36,5.27510494]
[1761316328116,0.7,190.42,190.37,5.27510494]
[1761316328315,5.97510494,190.42,190.35,13.13331179]
[1761316328517,0.7,190.42,190.35,18.38679222]
[1761316328816,0.7,190.41,190.37,5.27510494]
[1761316329422,0.7,190.41,190.38,5.27510494]
[1761316329592,0.7,190.41,190.37,5.27510494]
[1761316330432,0.7,190.45,190.36,18.38621558]
[1761316330590,38.88,190.44,190.36,18.38621558]
[1761316330913,44.15510494,190.44,190.38,5.27510494]
[1761316331112,0.7,190.43,190.36,18.38621558]
[1761316331290,5.27510494,190.42,190.36,23.66132052]
[1761316331491,5.27510494,190.39,190.36,5.25320445]
[1761316331890,0.7,190.38,190.36,5.25320445]
[1761316332491,62.44,190.41,190.36,5.27510494]
[1761316332692,22.88,190.41,190.36,7.99560981]
[1761316332917,39.56,190.41,190.36,7.99560981]
[1761316333216,0.7,190.4,190.37,7.99560981]
[1761316333413,0.7,190.42,190.38,7.99560981]
[1761316333616,0.7,190.42,190.33,13.53478293]
[1761316333918,0.7,190.42,190.38,7.99560981]
[1761316334091,0.7,190.42,190.33,13.13478293]
[1761316334298,0.7,190.42,190.37,7.99560981]
[1761316334506,0.7,190.42,190.38,5.25265258]
[1761316334689,0.7,190.42,190.38,13.24826239]
[1761316334894,0.7,190.42,190.38,26.37989386]
[1761316335610,0.7,190.42,190.38,5.25265258]
[1761316336201,0.7,190.42,190.39,7.99560981]
[1761316336410,61.74,190.45,190.4,7.99560981]
[1761316336606,0.7,190.42,190.4,5.25210084]
[1761316337006,38.86,190.45,190.4,26.37796275]
[1761316337219,0.7,190.44,190.4,26.37796275]
[1761316337517,0.7,190.44,190.39,7.99560981]
[1761316337819,0.7,190.44,190.4,7.99560981]
[1761316338293,0.7,190.44,190.41,7.99560981]
[1761316338497,0.7,190.44,190.42,5.2515492]
[1761316338821,30.87560981,190.48,190.42,5.2515492]
[1761316338999,0.7,190.47,190.43,7.99560981]
[1761316339321,0.7,190.47,190.42,5.2515492]
[1761316339503,0.7,190.47,190.44,7.99560981]
[1761316339816,7.99560981,190.45,190.42,5.2515492]
[1761316340117,23.58,190.47,190.42,5.2515492]
[1761316340324,0.67,190.49,190.44,7.99560981]
[1761316340534,0.67,190.48,190.44,5.25099768]
[1761316340701,7.99560981,190.47,190.44,5.25099768]
[1761316341096,0.67,190.46,190.44,5.25099768]
[1761316341810,0.67,190.45,190.44,5.25099768]
[1761316342119,0.67,190.48,190.44,5.25099768]
[1761316342424,0.67,190.47,190.44,26.37410171]
[1761316342599,0.67,190.48,190.44,26.37410171]
[1761316342793,38.84,190.48,190.44,26.37410171]
[1761316343018,0.67,190.47,190.44,18.3784919]
[1761316343221,8.66560981,190.47,190.43,5.25123286]
[1761316343425,0.67,190.46,190.43,5.25123286]
[1761316343618,0.67,190.46,190.42,5.25149968]
[1761316343825,8.66560981,190.46,190.42,5.25149968]
[1761316344009,7.99560981,190.45,190.42,5.25149968]
[1761316344214,0.67,190.45,190.42,5.25149968]
[1761316344522,39.49,190.44,190.27,26.27725115]
[1761316344716,47.48560981,190.44,190.38,7.99560981]
[1761316344915,0.67,190.43,190.37,7.99560981]
[1761316345102,8.66560981,190.43,190.33,22.88]
[1761316345428,8.66560981,190.43,190.3,11.27647521]
[1761316345429,22.88,190.39,190.29,18.39297913]
[1761316345730,0.67,190.43,190.29,18.39297913]
[1761316345731,38.82,190.42,190.37,7.99560981]
[1761316345902,38.82,190.42,190.29,44.66866361]
[1761316345903,0.67,190.41,190.32,0.4]
[1761316346102,38.82,190.42,190.38,7.99560981]
[1761316346309,0.67,190.45,190.41,7.99560981]
[1761316346702,22.88,190.48,190.42,13.24715901]
[1761316346909,0.67,190.48,190.42,18.38042221]
[1761316347213,38.82,190.47,190.44,7.99560981]
[1761316347401,38.82,190.47,190.43,7.99560981]
[1761316347604,0.67,190.46,190.43,7.99560981]
[1761316347797,0.67,190.46,190.42,5.2515492]
[1761316348001,0.67,190.46,190.36,22.88]
[1761316348002,8.66560981,190.46,190.4,13.24746733]
[1761316348219,0.67,190.46,190.4,5.25185752]
[1761316348418,7.99560981,190.43,190.38,5.25242343]
[1761316348623,7.99560981,190.41,190.36,5.25320445]
[1761316348823,7.99560981,190.41,190.31,7.99560981]
[1761316348824,7.99560981,190.37,190.31,7.99560981]
[1761316349126,46.81560981,190.37,190.31,7.99560981]
[1761316349329,0.67,190.36,190.31,7.99560981]
[1761316349627,0.67,190.36,190.26,18.79587932]
[1761316349628,7.99560981,190.34,190.26,18.79587932]
[1761316349801,7.99560981,190.33,190.26,26.39148913]
[1761316350003,7.99560981,190.33,190.27,7.99560981]
[1761316350004,38.82,190.32,190.27,7.99560981]
[1761316350227,47.48560981,190.32,190.26,26.39148913]
[1761316350431,8.66560981,190.31,190.26,13.25157533]
[1761316350636,8.66560981,190.31,190.22,5.35682829]
[1761316350637,7.99560981,190.27,190.22,5.35682829]
[1761316350936,46.81560981,190.27,190.22,5.35682829]
[1761316351140,8.66560981,190.26,190.22,5.35682829]
[1761316351304,0.67,190.25,190.22,5.35682829]
[1761316351722,0.67,190.25,190.22,0.1]
[1761316352027,39.49,190.27,190.22,5.35703987]
[1761316352200,0.67,190.26,190.22,5.35703987]
[1761316352402,7.99560981,190.23,190.22,0.1]
[1761316352812,8.66560981,190.23,190.22,0.1]
[1761316353100,22.88,190.24,190.22,0.1]
[1761316353301,46.79560981,190.24,190.22,0.1]
[1761316353500,0.67,190.23,190.22,0.1]
[1761316353726,8.66560981,190.23,190.22,0.1]
[1761316354612,0.67,190.23,190.22,0.1]
[1761316355316,8.66560981,190.23,190.22,0.1]
[1761316356225,10.87647521,190.2,190.18,0.1]
[1761316356433,57.69208502,190.19,190.18,0.1]
[1761316356811,58.36208502,190.19,190.18,0.1]
[1761316357210,23.55,190.23,190.18,0.1]
[1761316357410,22.88,190.19,190.18,0.1]
[1761316357627,61.7,190.19,190.18,0.1]
[1761316358032,62.37,190.19,190.18,0.1]
[1761316358343,38.82,190.19,190.18,5.35817646]
[1761316358930,38.82,190.23,190.18,26.49922743]
[1761316359115,38.82,190.23,190.19,7.99560981]
[1761316359315,38.82,190.23,190.2,7.99560981]
[1761316359921,38.82,190.23,190.22,7.99560981]
[1761316360115,38.8,190.24,190.21,7.99560981]
[1761316360322,39.47,190.24,190.2,7.99560981]
[1761316360512,38.8,190.24,190.21,7.99560981]
[1761316360828,38.8,190.24,190.23,7.99560981]
[1761316360829,38.82,190.24,190.23,7.99560981]
[1761316361031,23.55,190.27,190.23,7.99560981]
[1761316361032,38.8,190.25,190.23,7.99560981]
[1761316361220,38.8,190.25,190.22,7.99560981]
[1761316361422,39.47,190.25,190.22,7.99560981]
[1761316361817,38.8,190.25,190.23,7.99560981]
[1761316362017,38.8,190.25,190.21,13.14305621]
[1761316362218,13.13275989,190.37,190.21,13.14305621]
[1761316362219,0.67,190.31,190.24,7.99560981]
[1761316362427,37.9,190.3,190.27,7.99560981]
[1761316362624,22.88,190.3,190.27,7.99560981]
[1761316362941,62.35,190.3,190.28,5.25541307]
[1761316363237,61.68,190.3,190.28,5.25541307]
[1761316363411,38.8,190.3,190.28,13.25102288]
[1761316363611,0.67,190.33,190.28,13.25102288]
[1761316363827,38.8,190.32,190.28,5.25541307]
[1761316364213,0.67,190.31,190.28,13.25102288]
[1761316364420,10.87647521,190.34,190.28,26.38955556]
[1761316364615,47.46560981,190.33,190.28,18.39394575]
[1761316364934,38.8,190.32,190.28,5.25541307]
[1761316365136,39.47,190.32,190.29,7.99560981]
[1761316365329,38.8,190.32,190.29,7.99560981]
[1761316365535,39.47,190.32,190.29,7.99560981]
[1761316365715,0.67,190.32,190.29,7.99560981]
[1761316365916,39.47,190.32,190.29,7.99560981]
[1761316366115,0.67,190.32,190.3,7.99560981]
[1761316366341,38.8,190.32,190.3,7.99560981]
[1761316366533,23.55,190.35,190.31,7.99560981]
[1761316366730,38.8,190.34,190.33,5.25403246]
[1761316367243,39.47,190.34,190.31,7.99560981]
[1761316367920,38.8,190.34,190.31,7.99560981]
[1761316368319,38.8,190.34,190.32,5.25430853]
[1761316369026,0.67,190.33,190.3,5.25486074]
[1761316369219,8.66560981,190.33,190.3,5.25486074]
[1761316369622,8.70560981,190.32,190.3,5.25486074]
[1761316369829,39.49,190.31,190.3,5.25486074]
[1761316370216,39.49,190.31,190.27,18.39491248]
[1761316371149,38.78,190.31,190.27,18.39491248]
[1761316371357,39.49,190.31,190.27,18.39491248]
[1761316371647,39.49,190.31,190.27,26.39052229]
[1761316372020,39.49,190.31,190.27,18.39491248]
[1761316372326,38.78,190.31,190.28,7.99560981]
[1761316372653,38.78,190.31,190.29,7.99560981]
[1761316372845,38.78,190.31,190.27,26.39052229]
[1761316373049,39.49,190.31,190.27,18.39491248]
[1761316373261,39.49,190.31,190.27,26.39052229]
[1761316373759,39.49,190.31,190.27,18.39491248]
[1761316373760,0.71,190.3,190.27,18.39491248]
[1761316374146,38.78,190.31,190.27,26.39052229]
[1761316374364,38.78,190.31,190.28,7.99560981]
[1761316374567,38.78,190.33,190.3,7.99560981]
[1761316374944,23.59,190.35,190.3,7.99560981]
[1761316375144,38.76,190.34,190.3,7.99560981]
[1761316375360,0.71,190.34,190.31,7.99560981]
[1761316375565,0.71,190.34,190.32,5.25430853]
[1761316375951,0.71,190.34,190.3,5.25460585]
[1761316376155,0.71,190.34,190.3,13.25021566]
[1761316376848,0.71,190.34,190.3,5.25460585]
[1761316377049,0.71,190.34,190.3,13.25021566]
[1761316377260,0.71,190.34,190.3,5.25460585]
[1761316377667,0.71,190.34,190.3,13.25021566]
[1761316378059,0.71,190.34,190.3,5.25460585]
[1761316378567,8.67560981,190.38,190.33,7.99560981]
[1761316378774,22.88,190.35,190.33,7.99560981]
[1761316378945,22.88,190.35,190.32,7.99560981]
[1761316379149,22.88,190.35,190.33,7.99560981]
[1761316379583,0.68,190.34,190.24,0.5]
[1761316379767,0.68,190.34,190.28,7.99560981]
[1761316379768,46.75560981,190.33,190.28,7.99560981]
[1761316379968,38.76,190.33,190.28,7.99560981]
[1761316380154,0.68,190.33,190.29,7.99560981]
[1761316380352,39.42,190.32,190.25,5.25624178]
[1761316380574,7.99560981,190.28,190.22,7.99560981]
[1761316380752,7.99560981,190.28,190.21,5.25734714]
[1761316380753,38.74,190.27,190.24,7.99560981]
[1761316380951,22.88,190.29,190.21,18.90071499]
[1761316381178,0.68,190.31,190.27,7.99560981]
[1761316381179,22.88,190.31,190.27,7.99560981]
[1761316381360,38.74,190.28,190.27,7.99560981]
[1761316381756,38.74,190.3,190.28,5.25541307]
[1761316382153,0.68,190.33,190.28,26.38955556]
[1761316382365,0.68,190.33,190.29,7.99560981]
[1761316382366,38.74,190.32,190.29,7.99560981]
[1761316382579,38.74,190.32,190.3,7.99560981]
[1761316382781,61.62,190.33,190.3,7.99560981]
[1761316383186,38.74,190.33,190.31,7.99560981]
[1761316383389,0.68,190.39,190.32,7.99560981]
[1761316383553,38.74,190.38,190.35,7.99560981]
[1761316383751,46.73560981,190.41,190.31,44.6639693]
[1761316383978,8.67560981,190.4,190.33,7.99560981]
[1761316384158,8.67560981,190.4,190.34,7.99560981]
[1761316384360,0.68,190.4,190.34,7.99560981]
[1761316384673,0.68,190.39,190.31,45.1639693]
[1761316384976,7.99560981,190.38,190.32,7.99560981]
[1761316385182,38.74,190.37,190.32,7.99560981]
[1761316385553,39.42,190.37,190.31,18.39104618]
[1761316385868,7.99560981,190.34,190.28,26.38955556]
[1761316386066,38.74,190.33,190.28,26.38955556]
[1761316386263,38.72,190.35,190.32,7.99560981]
[1761316386461,38.72,190.37,190.33,7.99560981]
[1761316386781,38.72,190.37,190.32,7.99560981]
[1761316387278,38.72,190.37,190.3,0.5]
[1761316387456,38.72,190.37,190.32,7.99560981]
[1761316387657,22.88,190.38,190.34,7.99560981]
[1761316387975,0.68,190.39,190.34,7.99560981]
[1761316387976,38.72,190.37,190.35,13.24909024]
[1761316388359,38.72,190.37,190.36,7.99560981]
[1761316388681,22.88,190.41,190.36,7.99560981]
[1761316388682,38.72,190.39,190.36,7.99560981]
[1761316389259,0.68,190.43,190.38,7.99560981]
[1761316389497,7.99560981,190.45,190.4,7.99560981]
[1761316389498,0.68,190.45,190.4,7.99560981]
[1761316389701,38.72,190.45,190.43,7.99560981]
[1761316389993,38.72,190.45,190.44,5.25099768]
[1761316390361,38.72,190.46,190.44,5.25099768]
[1761316391378,0.68,190.45,190.41,7.99560981]
[1761316391783,38.7,190.44,190.42,5.2515492]
[1761316391982,38.7,190.44,190.42,13.24715901]
[1761316392178,8.67560981,190.48,190.43,7.99560981]
[1761316392179,38.7,190.46,190.43,7.99560981]
[1761316392371,38.7,190.46,190.42,18.38042221]
[1761316392570,31.55560981,190.49,190.43,7.99560981]
[1761316392786,38.7,190.48,190.44,7.99560981]
[1761316392967,22.88,190.49,190.44,7.99560981]
[1761316393275,39.38,190.48,190.45,7.99560981]
[1761316393703,39.38,190.48,190.44,7.99560981]
[1761316393877,38.7,190.48,190.45,5.25072197]
[1761316394196,39.38,190.48,190.45,5.25072197]
[1761316394809,38.7,190.48,190.45,10.50847587]
[1761316394977,38.7,190.48,190.45,23.6352808]